[Event "Titled Tuesday Blitz December 7 2021"]
[White "Holt, Conrad"]
[Black "Yilmaz, Mustafa"]
[WhiteFideId "2034387"]
[BlackFideId "6302718"]
[WhiteElo "2586"]
[BlackElo "2568"]
[Result "1-0"]
[Round "05"]
[TimeControl "180+1"]
[Date "2021.12.07"]
[WhiteClock "0:00:21"]
[BlackClock "0:00:03"]

1. d4 {[%clk 0:03:00]}  Nf6 {[%clk 0:03:00]} 2. c4 {[%clk 0:03:00]}  e6 {[%clk 0:03:00]} 3. Nc3 {[%clk 0:03:00]}  Bb4 {[%clk 0:03:00]} 4. Qc2 {[%clk 0:03:00]}  O-O {[%clk 0:02:59]} 5. e4 {[%clk 0:03:00]}  d5 {[%clk 0:02:59]} 6. e5 {[%clk 0:03:00]}  Ne4 {[%clk 0:03:00]} 7. Bd3 {[%clk 0:03:01]}  c5 {[%clk 0:03:00]} 8. Nf3 {[%clk 0:03:02]}  cxd4 {[%clk 0:03:00]} 9. Nxd4 {[%clk 0:03:03]}  Nd7 {[%clk 0:02:59]} 10. Bf4 {[%clk 0:03:02]}  Qh4 {[%clk 0:02:58]} 11. g3 {[%clk 0:03:02]}  Qh5 {[%clk 0:02:58]} 12. O-O {[%clk 0:03:00]}  g5 {[%clk 0:02:57]} 13. cxd5 {[%clk 0:02:38]}  Nxc3 {[%clk 0:02:56]} 14. bxc3 {[%clk 0:02:36]}  gxf4 {[%clk 0:02:48]} 15. cxb4 {[%clk 0:02:20]}  Nxe5 {[%clk 0:02:39]} 16. dxe6 {[%clk 0:02:11]}  Bxe6 {[%clk 0:01:55]} 17. Rfe1 {[%clk 0:01:56]}  Rad8 {[%clk 0:01:37]} 18. Be2 {[%clk 0:01:07]}  Ng4 {[%clk 0:00:42]} 19. Nf3 {[%clk 0:01:03]}  Bd5 {[%clk 0:00:34]} 20. Nh4 {[%clk 0:01:01]}  fxg3 {[%clk 0:00:27]} 21. hxg3 {[%clk 0:01:00]}  Rfe8 {[%clk 0:00:25]} 22. Rad1 {[%clk 0:00:49]}  Qe5 {[%clk 0:00:21]} 23. Qc1 {[%clk 0:00:33]}  Nf6 {[%clk 0:00:09]} 24. Bb5 {[%clk 0:00:29]}  Qd6 {[%clk 0:00:03]} 25. Qg5+ {[%clk 0:00:27]}  Kh8 {[%clk 0:00:03]} 26. Nf5 {[%clk 0:00:25]}  Rg8 {[%clk 0:00:01]} 27. Qxg8+ {[%clk 0:00:22]}  Kxg8 {[%clk 0:00:02]} 28. Nxd6 {[%clk 0:00:22]}  Rxd6 {[%clk 0:00:03]} 29. Bc4 {[%clk 0:00:21]}  Rd7 {[%clk 0:00:01]} 30. Bxd5 {[%clk 0:00:21]}  Nxd5 {[%clk 0:00:02]} 31. Re5 {[%clk 0:00:20]}  Nb6 {[%clk 0:00:02]} 32. Rxd7 {[%clk 0:00:20]}  Nxd7 {[%clk 0:00:03]} 33. Re7 {[%clk 0:00:21]} 1-0


[Site "https://www.chess.com"]

[Event "Titled Tuesday Blitz December 7 2021"]
[White "Horvath, Dominik"]
[Black "Punin, Andrii"]
[WhiteFideId "1642561"]
[BlackFideId "14112639"]
[WhiteElo "2336"]
[BlackElo "2357"]
[Result "1-0"]
[Round "05"]
[TimeControl "180+1"]
[Date "2021.12.07"]
[WhiteClock "0:02:37"]
[BlackClock "0:01:58"]

1. e4 {[%clk 0:02:57]}  c6 {[%clk 0:02:59]} 2. Nc3 {[%clk 0:02:53]}  d5 {[%clk 0:02:58]} 3. Nf3 {[%clk 0:02:54]}  dxe4 {[%clk 0:02:58]} 4. Nxe4 {[%clk 0:02:55]}  Nf6 {[%clk 0:02:59]} 5. Qe2 {[%clk 0:02:55]}  Nxe4 {[%clk 0:02:57]} 6. Qxe4 {[%clk 0:02:56]}  Qa5 {[%clk 0:02:57]} 7. Qf4 {[%clk 0:02:56]}  Qf5 {[%clk 0:02:57]} 8. Qe3 {[%clk 0:02:56]}  Qxc2 {[%clk 0:02:57]} 9. Bd3 {[%clk 0:02:56]}  Qa4 {[%clk 0:02:57]} 10. O-O {[%clk 0:02:57]}  Na6 {[%clk 0:02:50]} 11. Ne5 {[%clk 0:02:50]}  f6 {[%clk 0:02:45]} 12. Nc4 {[%clk 0:02:47]}  e5 {[%clk 0:02:31]} 13. b3 {[%clk 0:02:40]}  Qb4 {[%clk 0:02:16]} 14. Ba3 {[%clk 0:02:40]}  Qxa3 {[%clk 0:02:06]} 15. Nxa3 {[%clk 0:02:40]}  Bxa3 {[%clk 0:02:07]} 16. Bxa6 {[%clk 0:02:38]}  bxa6 {[%clk 0:02:07]} 17. Qc3 {[%clk 0:02:39]}  Bd7 {[%clk 0:01:58]} 18. b4 {[%clk 0:02:37]} 1-0


[Site "https://www.chess.com"]

[Event "Titled Tuesday Blitz December 7 2021"]
[White "Jobava, Baadur"]
[Black "Gasanov, Eldar"]
[WhiteFideId "13601520"]
[BlackFideId "14104466"]
[WhiteElo "2689"]
[BlackElo "2454"]
[Result "1-0"]
[Round "05"]
[TimeControl "180+1"]
[Date "2021.12.07"]
[WhiteClock "0:00:30"]
[BlackClock "0:00:01"]

1. e4 {[%clk 0:02:46]}  c5 {[%clk 0:02:42]} 2. c3 {[%clk 0:02:44]}  e5 {[%clk 0:02:41]} 3. Nf3 {[%clk 0:02:43]}  Nc6 {[%clk 0:02:42]} 4. d4 {[%clk 0:02:42]}  exd4 {[%clk 0:02:42]} 5. cxd4 {[%clk 0:02:43]}  cxd4 {[%clk 0:02:41]} 6. Bd3 {[%clk 0:02:39]}  Bb4+ {[%clk 0:02:35]} 7. Nbd2 {[%clk 0:02:38]}  Nf6 {[%clk 0:02:30]} 8. O-O {[%clk 0:02:38]}  O-O {[%clk 0:02:25]} 9. e5 {[%clk 0:02:33]}  Ng4 {[%clk 0:02:12]} 10. Nc4 {[%clk 0:02:30]}  d5 {[%clk 0:02:08]} 11. exd6 {[%clk 0:02:26]}  Bxd6 {[%clk 0:02:01]} 12. Re1 {[%clk 0:02:24]}  Bc7 {[%clk 0:01:47]} 13. h3 {[%clk 0:02:21]}  Nf6 {[%clk 0:01:45]} 14. Bg5 {[%clk 0:02:21]}  h6 {[%clk 0:01:39]} 15. Bh4 {[%clk 0:02:21]}  Be6 {[%clk 0:01:33]} 16. Rc1 {[%clk 0:02:08]}  Rc8 {[%clk 0:01:22]} 17. a3 {[%clk 0:02:05]}  Re8 {[%clk 0:01:07]} 18. Qd2 {[%clk 0:01:59]}  b5 {[%clk 0:00:50]} 19. Nce5 {[%clk 0:01:58]}  Nxe5 {[%clk 0:00:48]} 20. Nxe5 {[%clk 0:01:59]}  Bxe5 {[%clk 0:00:41]} 21. Rxe5 {[%clk 0:02:00]}  Rxc1+ {[%clk 0:00:37]} 22. Qxc1 {[%clk 0:02:01]}  Qc8 {[%clk 0:00:37]} 23. Rc5 {[%clk 0:01:53]}  Qd8 {[%clk 0:00:35]} 24. Bxb5 {[%clk 0:01:51]}  Rf8 {[%clk 0:00:33]} 25. Bd3 {[%clk 0:01:49]}  Re8 {[%clk 0:00:29]} 26. b4 {[%clk 0:01:48]}  Bd7 {[%clk 0:00:25]} 27. Qf4 {[%clk 0:01:43]}  g5 {[%clk 0:00:20]} 28. Bxg5 {[%clk 0:01:42]}  Re1+ {[%clk 0:00:18]} 29. Kh2 {[%clk 0:01:41]}  hxg5 {[%clk 0:00:19]} 30. Rxg5+ {[%clk 0:01:39]}  Kf8 {[%clk 0:00:19]} 31. Qxd4 {[%clk 0:01:31]}  Qe7 {[%clk 0:00:16]} 32. Ra5 {[%clk 0:00:54]}  Ng4+ {[%clk 0:00:11]} 33. Kg3 {[%clk 0:00:55]}  Ne5 {[%clk 0:00:11]} 34. f4 {[%clk 0:00:55]}  Ng6 {[%clk 0:00:06]} 35. Bxg6 {[%clk 0:00:45]}  fxg6 {[%clk 0:00:05]} 36. Rxa7 {[%clk 0:00:43]}  Qe3+ {[%clk 0:00:04]} 37. Qxe3 {[%clk 0:00:44]}  Rxe3+ {[%clk 0:00:05]} 38. Kh4 {[%clk 0:00:42]}  Bc6 {[%clk 0:00:04]} 39. g3 {[%clk 0:00:37]}  Bg2 {[%clk 0:00:02]} 40. b5 {[%clk 0:00:35]}  Rb3 {[%clk 0:00:02]} 41. a4 {[%clk 0:00:35]}  Bf1 {[%clk 0:00:01]} 42. g4 {[%clk 0:00:30]} 1-0


[Site "https://www.chess.com"]

[Event "Titled Tuesday Blitz December 7 2021"]
[White "Koellner, Ruben Gideon"]
[Black "Khoroshev, Nikita"]
[WhiteFideId "12993093"]
[BlackFideId "14200287"]
[WhiteElo "2566"]
[BlackElo "2354"]
[Result "1-0"]
[Round "05"]
[TimeControl "180+1"]
[Date "2021.12.07"]
[WhiteClock "0:00:16"]
[BlackClock "0:00:04"]

1. d4 {[%clk 0:03:00]}  Nf6 {[%clk 0:02:59]} 2. Bg5 {[%clk 0:03:00]}  d6 {[%clk 0:02:52]} 3. Bxf6 {[%clk 0:02:55]}  gxf6 {[%clk 0:02:47]} 4. g3 {[%clk 0:02:52]}  f5 {[%clk 0:02:43]} 5. Bg2 {[%clk 0:02:51]}  Rg8 {[%clk 0:02:41]} 6. e3 {[%clk 0:02:51]}  Bg7 {[%clk 0:02:38]} 7. Ne2 {[%clk 0:02:51]}  c6 {[%clk 0:02:39]} 8. c4 {[%clk 0:02:50]}  Nd7 {[%clk 0:02:31]} 9. Nbc3 {[%clk 0:02:50]}  Nf6 {[%clk 0:02:31]} 10. b4 {[%clk 0:02:48]}  Bd7 {[%clk 0:02:30]} 11. a4 {[%clk 0:02:47]}  e6 {[%clk 0:02:18]} 12. O-O {[%clk 0:02:44]}  h5 {[%clk 0:02:15]} 13. h4 {[%clk 0:02:39]}  Bh6 {[%clk 0:02:11]} 14. b5 {[%clk 0:02:37]}  Rc8 {[%clk 0:01:36]} 15. Qd3 {[%clk 0:02:31]}  d5 {[%clk 0:01:23]} 16. c5 {[%clk 0:02:30]}  Ne4 {[%clk 0:01:17]} 17. a5 {[%clk 0:02:29]}  cxb5 {[%clk 0:00:50]} 18. Nxb5 {[%clk 0:02:27]}  a6 {[%clk 0:00:47]} 19. Nbc3 {[%clk 0:02:13]}  Bc6 {[%clk 0:00:45]} 20. Rfb1 {[%clk 0:01:58]}  Qc7 {[%clk 0:00:37]} 21. Nf4 {[%clk 0:01:44]}  Qe7 {[%clk 0:00:08]} 22. Nxe4 {[%clk 0:01:40]}  fxe4 {[%clk 0:00:06]} 23. Qe2 {[%clk 0:01:40]}  Bxf4 {[%clk 0:00:06]} 24. exf4 {[%clk 0:01:39]}  Qf6 {[%clk 0:00:07]} 25. Qe3 {[%clk 0:01:35]}  Rc7 {[%clk 0:00:05]} 26. Kh2 {[%clk 0:01:35]}  Rg4 {[%clk 0:00:04]} 27. Bh3 {[%clk 0:01:34]}  Rg7 {[%clk 0:00:05]} 28. Rb3 {[%clk 0:01:33]}  Qe7 {[%clk 0:00:05]} 29. Rab1 {[%clk 0:01:33]}  f5 {[%clk 0:00:06]} 30. Bf1 {[%clk 0:01:31]}  Qf6 {[%clk 0:00:06]} 31. Be2 {[%clk 0:01:31]}  Qg6 {[%clk 0:00:06]} 32. Rb6 {[%clk 0:01:28]}  Kf8 {[%clk 0:00:06]} 33. R1b3 {[%clk 0:01:24]}  Kg8 {[%clk 0:00:06]} 34. Qd2 {[%clk 0:01:24]}  Kh7 {[%clk 0:00:06]} 35. Re3 {[%clk 0:01:20]}  Kh6 {[%clk 0:00:07]} 36. Reb3 {[%clk 0:01:18]}  Qf6 {[%clk 0:00:07]} 37. Qe3 {[%clk 0:01:16]}  Qg6 {[%clk 0:00:07]} 38. Kg1 {[%clk 0:01:14]}  Qf6 {[%clk 0:00:08]} 39. Kf1 {[%clk 0:01:15]}  Qg6 {[%clk 0:00:08]} 40. Ke1 {[%clk 0:01:15]}  Qf6 {[%clk 0:00:09]} 41. Kd2 {[%clk 0:01:15]}  Qg6 {[%clk 0:00:09]} 42. Kc3 {[%clk 0:01:13]}  Qf6 {[%clk 0:00:09]} 43. Rb1 {[%clk 0:01:10]}  Qg6 {[%clk 0:00:09]} 44. Bd1 {[%clk 0:01:06]}  Qf6 {[%clk 0:00:09]} 45. Kd2 {[%clk 0:01:03]}  Qg6 {[%clk 0:00:09]} 46. Qe2 {[%clk 0:01:03]}  Qf7 {[%clk 0:00:09]} 47. R1b4 {[%clk 0:01:02]}  Qg6 {[%clk 0:00:09]} 48. Ba4 {[%clk 0:01:00]}  Bxa4 {[%clk 0:00:05]} 49. Rxa4 {[%clk 0:01:01]}  Qf6 {[%clk 0:00:04]} 50. Rab4 {[%clk 0:00:59]}  Rge7 {[%clk 0:00:04]} 51. Ke3 {[%clk 0:00:57]}  Kg6 {[%clk 0:00:04]} 52. Rd6 {[%clk 0:00:56]}  Kh6 {[%clk 0:00:04]} 53. Rbb6 {[%clk 0:00:55]}  Rxc5 {[%clk 0:00:04]} 54. Qd2 {[%clk 0:00:39]}  Rc6 {[%clk 0:00:04]} 55. Rdxc6 {[%clk 0:00:37]}  bxc6 {[%clk 0:00:05]} 56. Rxc6 {[%clk 0:00:35]}  Rb7 {[%clk 0:00:05]} 57. Qc3 {[%clk 0:00:30]}  Rb1 {[%clk 0:00:03]} 58. Qc5 {[%clk 0:00:28]}  Rb3+ {[%clk 0:00:02]} 59. Kd2 {[%clk 0:00:28]}  Rd3+ {[%clk 0:00:02]} 60. Ke2 {[%clk 0:00:25]}  Rxd4 {[%clk 0:00:03]} 61. Qb6 {[%clk 0:00:17]}  Ra4 {[%clk 0:00:04]} 62. Rxe6 {[%clk 0:00:17]}  Ra2+ {[%clk 0:00:04]} 63. Kf1 {[%clk 0:00:16]}  Ra1+ {[%clk 0:00:04]} 64. Kg2 {[%clk 0:00:16]} 1-0


[Site "https://www.chess.com"]

[Event "Titled Tuesday Blitz December 7 2021"]
[White "Kozionov, Kirill"]
[Black "Devaev, Alexander"]
[WhiteFideId "24101729"]
[BlackFideId "4169395"]
[WhiteElo "2426"]
[BlackElo "2185"]
[Result "1-0"]
[Round "05"]
[TimeControl "180+1"]
[Date "2021.12.07"]
[WhiteClock "0:00:35"]
[BlackClock "0:00:02"]

1. b3 {[%clk 0:02:59]}  d5 {[%clk 0:02:58]} 2. Bb2 {[%clk 0:02:59]}  c5 {[%clk 0:02:58]} 3. e3 {[%clk 0:02:59]}  a6 {[%clk 0:02:59]} 4. Nf3 {[%clk 0:02:59]}  Nc6 {[%clk 0:03:00]} 5. d4 {[%clk 0:02:59]}  cxd4 {[%clk 0:02:57]} 6. Nxd4 {[%clk 0:03:00]}  Nf6 {[%clk 0:02:57]} 7. Be2 {[%clk 0:03:00]}  e6 {[%clk 0:02:52]} 8. O-O {[%clk 0:03:00]}  Bc5 {[%clk 0:02:49]} 9. c4 {[%clk 0:02:54]}  O-O {[%clk 0:02:38]} 10. cxd5 {[%clk 0:02:52]}  Bxd4 {[%clk 0:02:12]} 11. Bxd4 {[%clk 0:02:51]}  Nxd5 {[%clk 0:02:10]} 12. Bb2 {[%clk 0:02:50]}  e5 {[%clk 0:02:02]} 13. Nd2 {[%clk 0:02:43]}  Be6 {[%clk 0:02:00]} 14. Rc1 {[%clk 0:02:33]}  Rc8 {[%clk 0:01:50]} 15. a3 {[%clk 0:02:32]}  Qd7 {[%clk 0:01:44]} 16. Ne4 {[%clk 0:02:32]}  Rfd8 {[%clk 0:01:21]} 17. Nc5 {[%clk 0:02:29]}  Qe7 {[%clk 0:01:21]} 18. Qe1 {[%clk 0:02:15]}  f6 {[%clk 0:01:13]} 19. Nxe6 {[%clk 0:02:03]}  Qxe6 {[%clk 0:01:13]} 20. Rc4 {[%clk 0:01:44]}  Nb6 {[%clk 0:00:53]} 21. Qc3 {[%clk 0:01:19]}  Kh8 {[%clk 0:00:48]} 22. Rc5 {[%clk 0:01:19]}  Nd7 {[%clk 0:00:46]} 23. Bc4 {[%clk 0:01:17]}  Qe7 {[%clk 0:00:41]} 24. Rd5 {[%clk 0:01:15]}  b5 {[%clk 0:00:15]} 25. Bd3 {[%clk 0:00:58]}  b4 {[%clk 0:00:12]} 26. Qd2 {[%clk 0:00:47]}  bxa3 {[%clk 0:00:11]} 27. Bxa6 {[%clk 0:00:47]}  axb2 {[%clk 0:00:05]} 28. Bxc8 {[%clk 0:00:47]}  Nb6 {[%clk 0:00:03]} 29. Rxd8+ {[%clk 0:00:44]}  Nxd8 {[%clk 0:00:04]} 30. Bf5 {[%clk 0:00:42]}  g6 {[%clk 0:00:03]} 31. Bb1 {[%clk 0:00:42]}  Ne6 {[%clk 0:00:03]} 32. Qxb2 {[%clk 0:00:42]}  Nd5 {[%clk 0:00:03]} 33. Rd1 {[%clk 0:00:41]}  Nb4 {[%clk 0:00:03]} 34. Qc3 {[%clk 0:00:41]}  Kg7 {[%clk 0:00:03]} 35. h3 {[%clk 0:00:41]}  h5 {[%clk 0:00:03]} 36. Qc4 {[%clk 0:00:41]}  Ng5 {[%clk 0:00:02]} 37. Rc1 {[%clk 0:00:37]}  Kh6 {[%clk 0:00:01]} 38. Qc8 {[%clk 0:00:36]}  Qf8 {[%clk 0:00:02]} 39. Qxf8+ {[%clk 0:00:35]} 1-0


[Site "https://www.chess.com"]

[Event "Titled Tuesday Blitz December 7 2021"]
[White "Leiva, Gianmarco"]
[Black "Nguyen Hong Nhung"]
[WhiteFideId "3804399"]
[BlackFideId "12412201"]
[WhiteElo "2328"]
[BlackElo "1661"]
[Result "1-0"]
[Round "05"]
[TimeControl "180+1"]
[Date "2021.12.07"]
[WhiteClock "0:00:04"]
[BlackClock "0:00:06"]

1. e4 {[%clk 0:02:57]}  c5 {[%clk 0:03:00]} 2. Nf3 {[%clk 0:02:57]}  e6 {[%clk 0:02:59]} 3. g3 {[%clk 0:02:55]}  Nc6 {[%clk 0:02:59]} 4. Bg2 {[%clk 0:02:54]}  d6 {[%clk 0:02:56]} 5. O-O {[%clk 0:02:53]}  Nf6 {[%clk 0:02:57]} 6. Re1 {[%clk 0:02:14]}  Be7 {[%clk 0:02:55]} 7. c3 {[%clk 0:02:13]}  e5 {[%clk 0:02:43]} 8. d4 {[%clk 0:02:13]}  cxd4 {[%clk 0:02:40]} 9. cxd4 {[%clk 0:02:14]}  Bg4 {[%clk 0:02:39]} 10. d5 {[%clk 0:01:49]}  Nd4 {[%clk 0:02:38]} 11. Be3 {[%clk 0:01:35]}  Nxf3+ {[%clk 0:02:28]} 12. Bxf3 {[%clk 0:01:35]}  Bxf3 {[%clk 0:02:24]} 13. Qxf3 {[%clk 0:01:36]}  O-O {[%clk 0:02:24]} 14. Nd2 {[%clk 0:01:35]}  Rc8 {[%clk 0:02:21]} 15. Rec1 {[%clk 0:01:32]}  a6 {[%clk 0:02:18]} 16. Qd1 {[%clk 0:01:31]}  Qd7 {[%clk 0:02:17]} 17. f3 {[%clk 0:01:09]}  Qb5 {[%clk 0:02:12]} 18. Qb3 {[%clk 0:01:08]}  Qd7 {[%clk 0:01:57]} 19. Kg2 {[%clk 0:00:21]}  h5 {[%clk 0:01:53]} 20. h3 {[%clk 0:00:20]}  Nh7 {[%clk 0:01:42]} 21. Nc4 {[%clk 0:00:17]}  b5 {[%clk 0:01:18]} 22. Nb6 {[%clk 0:00:16]}  Rxc1 {[%clk 0:01:02]} 23. Nxd7 {[%clk 0:00:11]}  Rxa1 {[%clk 0:01:02]} 24. Nxf8 {[%clk 0:00:11]}  Nxf8 {[%clk 0:01:02]} 25. Qa3 {[%clk 0:00:08]}  b4 {[%clk 0:00:56]} 26. Qxa6 {[%clk 0:00:02]}  Rb1 {[%clk 0:00:57]} 27. Qc4 {[%clk 0:00:01]}  Rxb2+ {[%clk 0:00:57]} 28. Kf1 {[%clk 0:00:01]}  Rh2 {[%clk 0:00:54]} 29. Bf2 {[%clk 0:00:01]}  h4 {[%clk 0:00:50]} 30. Kg1 {[%clk 0:00:01]}  hxg3 {[%clk 0:00:49]} 31. Bxg3 {[%clk 0:00:02]}  Rxh3 {[%clk 0:00:50]} 32. Kg2 {[%clk 0:00:02]}  Rh6 {[%clk 0:00:50]} 33. Qxb4 {[%clk 0:00:02]}  Rg6 {[%clk 0:00:49]} 34. Kf2 {[%clk 0:00:03]}  f5 {[%clk 0:00:45]} 35. exf5 {[%clk 0:00:03]}  Rf6 {[%clk 0:00:45]} 36. Bh4 {[%clk 0:00:04]}  Rf7 {[%clk 0:00:43]} 37. Bxe7 {[%clk 0:00:04]}  Rxe7 {[%clk 0:00:44]} 38. Qxd6 {[%clk 0:00:05]}  Ra7 {[%clk 0:00:43]} 39. a3 {[%clk 0:00:04]}  Nd7 {[%clk 0:00:42]} 40. Qe6+ {[%clk 0:00:05]}  Kh8 {[%clk 0:00:40]} 41. Qe8+ {[%clk 0:00:05]}  Kh7 {[%clk 0:00:40]} 42. Qg6+ {[%clk 0:00:05]}  Kg8 {[%clk 0:00:40]} 43. Qe8+ {[%clk 0:00:06]}  Kh7 {[%clk 0:00:41]} 44. Qe7 {[%clk 0:00:06]}  Kg8 {[%clk 0:00:34]} 45. d6 {[%clk 0:00:07]}  Rb7 {[%clk 0:00:34]} 46. Qe6+ {[%clk 0:00:06]}  Kh7 {[%clk 0:00:31]} 47. Qg6+ {[%clk 0:00:06]}  Kg8 {[%clk 0:00:31]} 48. Qe6+ {[%clk 0:00:07]}  Kh7 {[%clk 0:00:31]} 49. Qd5 {[%clk 0:00:07]}  Rb2+ {[%clk 0:00:30]} 50. Ke1 {[%clk 0:00:07]}  Nf6 {[%clk 0:00:29]} 51. Qxe5 {[%clk 0:00:07]}  Rb1+ {[%clk 0:00:26]} 52. Kf2 {[%clk 0:00:07]}  Rb3 {[%clk 0:00:24]} 53. Qc5 {[%clk 0:00:05]}  Rb2+ {[%clk 0:00:22]} 54. Kg3 {[%clk 0:00:05]}  Rb3 {[%clk 0:00:22]} 55. Kf2 {[%clk 0:00:04]}  Rb2+ {[%clk 0:00:22]} 56. Ke1 {[%clk 0:00:04]}  Rb1+ {[%clk 0:00:22]} 57. Kd2 {[%clk 0:00:04]}  Rb3 {[%clk 0:00:22]} 58. Qc4 {[%clk 0:00:03]}  Rxf3 {[%clk 0:00:21]} 59. Qh4+ {[%clk 0:00:03]}  Kg8 {[%clk 0:00:21]} 60. Qc4+ {[%clk 0:00:04]}  Kh7 {[%clk 0:00:21]} 61. d7 {[%clk 0:00:03]}  Nxd7 {[%clk 0:00:17]} 62. Qd5 {[%clk 0:00:04]}  Rf2+ {[%clk 0:00:14]} 63. Ke1 {[%clk 0:00:04]}  Rh2 {[%clk 0:00:06]} 64. Qxd7 {[%clk 0:00:04]}  Rh3 {[%clk 0:00:06]} 65. f6 {[%clk 0:00:04]}  Rh1+ {[%clk 0:00:07]} 66. Kf2 {[%clk 0:00:03]}  Rh2+ {[%clk 0:00:07]} 67. Kg3 {[%clk 0:00:04]}  Rh1 {[%clk 0:00:06]} 68. Qxg7# {[%clk 0:00:04]} 1-0


[Site "https://www.chess.com"]

[Event "Titled Tuesday Blitz December 7 2021"]
[White "Makarian, Rudik"]
[Black "Sarana, Alexey"]
[WhiteFideId "44105681"]
[BlackFideId "24133795"]
[WhiteElo "2486"]
[BlackElo "2672"]
[Result "0-1"]
[Round "05"]
[TimeControl "180+1"]
[Date "2021.12.07"]
[WhiteClock "0:00:01"]
[BlackClock "0:00:20"]

1. d4 {[%clk 0:03:00]}  Nf6 {[%clk 0:03:00]} 2. c4 {[%clk 0:02:58]}  e6 {[%clk 0:03:00]} 3. g3 {[%clk 0:02:56]}  Bb4+ {[%clk 0:02:59]} 4. Nd2 {[%clk 0:02:55]}  d5 {[%clk 0:02:59]} 5. Nf3 {[%clk 0:02:54]}  dxc4 {[%clk 0:02:58]} 6. Bg2 {[%clk 0:02:54]}  b5 {[%clk 0:02:58]} 7. a3 {[%clk 0:02:52]}  Bxd2+ {[%clk 0:02:54]} 8. Nxd2 {[%clk 0:02:53]}  c6 {[%clk 0:02:52]} 9. Nf3 {[%clk 0:02:46]}  Bb7 {[%clk 0:02:49]} 10. O-O {[%clk 0:02:45]}  Nbd7 {[%clk 0:02:49]} 11. b3 {[%clk 0:02:33]}  cxb3 {[%clk 0:02:41]} 12. Qxb3 {[%clk 0:02:34]}  O-O {[%clk 0:02:41]} 13. a4 {[%clk 0:02:32]}  a6 {[%clk 0:02:38]} 14. Ba3 {[%clk 0:02:32]}  Re8 {[%clk 0:02:38]} 15. Rfd1 {[%clk 0:02:16]}  Qb6 {[%clk 0:02:36]} 16. Ne5 {[%clk 0:02:13]}  Rac8 {[%clk 0:02:31]} 17. Rac1 {[%clk 0:01:56]}  a5 {[%clk 0:01:41]} 18. Bc5 {[%clk 0:01:49]}  Qc7 {[%clk 0:01:31]} 19. Nxd7 {[%clk 0:00:52]}  Nxd7 {[%clk 0:01:30]} 20. axb5 {[%clk 0:00:52]}  cxb5 {[%clk 0:01:30]} 21. Qxb5 {[%clk 0:00:51]}  Bxg2 {[%clk 0:01:28]} 22. Kxg2 {[%clk 0:00:52]}  Rb8 {[%clk 0:01:22]} 23. Qa4 {[%clk 0:00:34]}  Ra8 {[%clk 0:01:21]} 24. Ba3 {[%clk 0:00:34]}  Qb7+ {[%clk 0:01:21]} 25. Qc6 {[%clk 0:00:34]}  Qa7 {[%clk 0:01:16]} 26. e3 {[%clk 0:00:19]}  h5 {[%clk 0:01:12]} 27. d5 {[%clk 0:00:19]}  Rac8 {[%clk 0:00:58]} 28. Qxc8 {[%clk 0:00:18]}  Rxc8 {[%clk 0:00:58]} 29. Rxc8+ {[%clk 0:00:19]}  Kh7 {[%clk 0:00:58]} 30. e4 {[%clk 0:00:12]}  Qb7 {[%clk 0:00:55]} 31. Rc3 {[%clk 0:00:11]}  Nf6 {[%clk 0:00:54]} 32. d6 {[%clk 0:00:08]}  Qxe4+ {[%clk 0:00:38]} 33. Kg1 {[%clk 0:00:07]}  Qa4 {[%clk 0:00:33]} 34. Rcd3 {[%clk 0:00:06]}  Nd7 {[%clk 0:00:33]} 35. Bc1 {[%clk 0:00:06]}  Qb5 {[%clk 0:00:31]} 36. Bf4 {[%clk 0:00:05]}  a4 {[%clk 0:00:31]} 37. h4 {[%clk 0:00:05]}  e5 {[%clk 0:00:31]} 38. Be3 {[%clk 0:00:05]}  f6 {[%clk 0:00:31]} 39. Rc3 {[%clk 0:00:04]}  Kg6 {[%clk 0:00:31]} 40. Rc7 {[%clk 0:00:04]}  Kf5 {[%clk 0:00:31]} 41. Ra7 {[%clk 0:00:05]}  Qc6 {[%clk 0:00:27]} 42. Ra1 {[%clk 0:00:04]}  Qxd6 {[%clk 0:00:27]} 43. R7xa4 {[%clk 0:00:03]}  Kg6 {[%clk 0:00:26]} 44. Kh2 {[%clk 0:00:03]}  Qd5 {[%clk 0:00:25]} 45. Ra6 {[%clk 0:00:03]}  e4 {[%clk 0:00:22]} 46. Bf4 {[%clk 0:00:02]}  Qd4 {[%clk 0:00:20]} 47. R1a2 {[%clk 0:00:02]}  Qc4 {[%clk 0:00:20]} 48. Ra7 {[%clk 0:00:01]}  Nc5 {[%clk 0:00:20]} 0-1


[Site "https://www.chess.com"]